[Event "Titled Tuesday Blitz August 02 Early 2022"]
[White "Janaszak, Dawid"]
[Black "Tanenbaum, Zachary"]
[WhiteFideId "1119206"]
[BlackFideId "2060850"]
[WhiteElo "2199"]
[BlackElo "2175"]
[Result "1-0"]
[Round "09"]
[TimeControl "180+1"]
[Date "2022.08.02"]
[WhiteClock "0:00:32"]
[BlackClock "0:00:05"]

1. d4 {[%clk 0:03:00]}  d5 {[%clk 0:03:00]} 2. Bf4 {[%clk 0:02:59]}  Nf6 {[%clk 0:02:59]} 3. Nf3 {[%clk 0:02:59]}  c5 {[%clk 0:02:59]} 4. e3 {[%clk 0:02:59]}  Nc6 {[%clk 0:02:58]} 5. Nbd2 {[%clk 0:02:59]}  cxd4 {[%clk 0:02:58]} 6. exd4 {[%clk 0:03:00]}  Qb6 {[%clk 0:02:58]} 7. Nb3 {[%clk 0:02:55]}  Bg4 {[%clk 0:02:58]} 8. c3 {[%clk 0:02:55]}  a5 {[%clk 0:02:57]} 9. a4 {[%clk 0:02:48]}  Bxf3 {[%clk 0:02:57]} 10. gxf3 {[%clk 0:02:46]}  e6 {[%clk 0:02:57]} 11. Bb5 {[%clk 0:02:42]}  Qd8 {[%clk 0:02:20]} 12. Nc1 {[%clk 0:02:36]}  Bd6 {[%clk 0:02:19]} 13. Bg3 {[%clk 0:02:37]}  O-O {[%clk 0:02:17]} 14. Bd3 {[%clk 0:02:20]}  Nh5 {[%clk 0:02:14]} 15. Qc2 {[%clk 0:02:00]}  g6 {[%clk 0:02:12]} 16. Ne2 {[%clk 0:01:58]}  Rc8 {[%clk 0:02:09]} 17. Qd2 {[%clk 0:01:56]}  Qc7 {[%clk 0:02:01]} 18. Qh6 {[%clk 0:01:37]}  e5 {[%clk 0:01:53]} 19. Rg1 {[%clk 0:01:34]}  Kh8 {[%clk 0:01:39]} 20. Bh4 {[%clk 0:01:30]}  Be7 {[%clk 0:01:32]} 21. Bg3 {[%clk 0:01:20]}  Bf6 {[%clk 0:01:25]} 22. dxe5 {[%clk 0:01:11]}  Nxe5 {[%clk 0:01:23]} 23. O-O-O {[%clk 0:00:58]}  Nxd3+ {[%clk 0:01:16]} 24. Rxd3 {[%clk 0:00:57]}  Qe7 {[%clk 0:01:17]} 25. Qd2 {[%clk 0:00:52]}  Rfe8 {[%clk 0:01:10]} 26. Nd4 {[%clk 0:00:48]}  Qd7 {[%clk 0:01:02]} 27. Nb5 {[%clk 0:00:44]}  d4 {[%clk 0:00:51]} 28. Kb1 {[%clk 0:00:44]}  dxc3 {[%clk 0:00:37]} 29. Rxd7 {[%clk 0:00:44]}  cxd2 {[%clk 0:00:37]} 30. Rxd2 {[%clk 0:00:45]}  Rcd8 {[%clk 0:00:27]} 31. Nd6 {[%clk 0:00:44]}  Re7 {[%clk 0:00:28]} 32. Rgd1 {[%clk 0:00:41]}  Nxg3 {[%clk 0:00:16]} 33. hxg3 {[%clk 0:00:42]}  Rf8 {[%clk 0:00:10]} 34. Ne4 {[%clk 0:00:42]}  Bg7 {[%clk 0:00:09]} 35. Rd7 {[%clk 0:00:42]}  Rxd7 {[%clk 0:00:08]} 36. Rxd7 {[%clk 0:00:43]}  b6 {[%clk 0:00:03]} 37. Rb7 {[%clk 0:00:43]}  Bd4 {[%clk 0:00:03]} 38. Kc2 {[%clk 0:00:41]}  h6 {[%clk 0:00:02]} 39. Kd3 {[%clk 0:00:41]}  Bxb2 {[%clk 0:00:03]} 40. Rxb6 {[%clk 0:00:40]}  Ba3 {[%clk 0:00:03]} 41. Rb5 {[%clk 0:00:40]}  Bb4 {[%clk 0:00:04]} 42. g4 {[%clk 0:00:38]}  Kg7 {[%clk 0:00:04]} 43. Rb7 {[%clk 0:00:38]}  Rd8+ {[%clk 0:00:05]} 44. Ke2 {[%clk 0:00:38]}  Re8 {[%clk 0:00:05]} 45. Kf1 {[%clk 0:00:37]}  Re7 {[%clk 0:00:06]} 46. Rb5 {[%clk 0:00:36]}  Rd7 {[%clk 0:00:06]} 47. f4 {[%clk 0:00:35]}  Rd4 {[%clk 0:00:06]} 48. f3 {[%clk 0:00:35]}  Rd3 {[%clk 0:00:06]} 49. Ke2 {[%clk 0:00:35]}  Ra3 {[%clk 0:00:06]} 50. f5 {[%clk 0:00:34]}  gxf5 {[%clk 0:00:05]} 51. gxf5 {[%clk 0:00:35]}  Rxa4 {[%clk 0:00:05]} 52. f6+ {[%clk 0:00:36]}  Kg6 {[%clk 0:00:05]} 53. Rb8 {[%clk 0:00:37]}  Ra2+ {[%clk 0:00:05]} 54. Ke3 {[%clk 0:00:35]}  Ra3+ {[%clk 0:00:05]} 55. Kf4 {[%clk 0:00:36]}  Kh7 {[%clk 0:00:05]} 56. Rb7 {[%clk 0:00:35]}  Kg6 {[%clk 0:00:05]} 57. Rb8 {[%clk 0:00:33]}  Ra4 {[%clk 0:00:04]} 58. Rg8+ {[%clk 0:00:32]}  Kh5 {[%clk 0:00:04]} 59. Rg7 {[%clk 0:00:33]}  Bd2+ {[%clk 0:00:03]} 60. Kf5 {[%clk 0:00:33]}  Bg5 {[%clk 0:00:04]} 61. Rxf7 {[%clk 0:00:31]}  Ra3 {[%clk 0:00:04]} 62. f4 {[%clk 0:00:30]}  Rf3 {[%clk 0:00:03]} 63. Nxg5 {[%clk 0:00:30]}  Rxf4+ {[%clk 0:00:04]} 64. Kxf4 {[%clk 0:00:30]}  hxg5+ {[%clk 0:00:04]} 65. Kf5 {[%clk 0:00:30]}  Kh6 {[%clk 0:00:04]} 66. Ra7 {[%clk 0:00:30]}  a4 {[%clk 0:00:04]} 67. Ra8 {[%clk 0:00:30]}  Kh7 {[%clk 0:00:04]} 68. Rxa4 {[%clk 0:00:30]}  g4 {[%clk 0:00:04]} 69. Kg5 {[%clk 0:00:30]}  g3 {[%clk 0:00:04]} 70. Ra7+ {[%clk 0:00:30]}  Kg8 {[%clk 0:00:04]} 71. Kg6 {[%clk 0:00:31]}  Kf8 {[%clk 0:00:05]} 72. Ra8# {[%clk 0:00:32]} 1-0


[Site "https://www.chess.com"]

[Event "Titled Tuesday Blitz August 02 Early 2022"]
[White "Khripachenko, Alexander"]
[Black "Harsh Suresh"]
[WhiteFideId "54184975"]
[BlackFideId "45018464"]
[WhiteElo "2147"]
[BlackElo "2059"]
[Result "1-0"]
[Round "09"]
[TimeControl "180+1"]
[Date "2022.08.02"]
[WhiteClock "0:00:29"]
[BlackClock "0:00:09"]

1. e4 {[%clk 0:02:57]}  g6 {[%clk 0:02:59]} 2. d4 {[%clk 0:02:58]}  Nf6 {[%clk 0:02:59]} 3. e5 {[%clk 0:02:58]}  Nh5 {[%clk 0:03:00]} 4. Nf3 {[%clk 0:02:56]}  d6 {[%clk 0:03:00]} 5. Bc4 {[%clk 0:02:56]}  Nc6 {[%clk 0:02:59]} 6. Qe2 {[%clk 0:02:54]}  dxe5 {[%clk 0:02:31]} 7. Nxe5 {[%clk 0:02:54]}  Nxe5 {[%clk 0:02:30]} 8. dxe5 {[%clk 0:02:54]}  Qd4 {[%clk 0:02:25]} 9. c3 {[%clk 0:02:48]}  Qh4 {[%clk 0:02:14]} 10. Nd2 {[%clk 0:02:15]}  Nf4 {[%clk 0:01:56]} 11. Qf3 {[%clk 0:02:12]}  Qg5 {[%clk 0:01:25]} 12. O-O {[%clk 0:01:43]}  Qxe5 {[%clk 0:01:15]} 13. Bxf7+ {[%clk 0:01:05]}  Kxf7 {[%clk 0:01:08]} 14. Nc4 {[%clk 0:01:05]}  Qf5 {[%clk 0:00:44]} 15. g4 {[%clk 0:01:05]}  Qxg4+ {[%clk 0:00:25]} 16. Qxg4 {[%clk 0:01:02]}  Bxg4 {[%clk 0:00:25]} 17. Bxf4 {[%clk 0:00:59]}  Bg7 {[%clk 0:00:25]} 18. Rfe1 {[%clk 0:00:58]}  Rhd8 {[%clk 0:00:22]} 19. Bxc7 {[%clk 0:00:52]}  Rd7 {[%clk 0:00:21]} 20. Be5 {[%clk 0:00:52]}  Rc8 {[%clk 0:00:19]} 21. Bxg7 {[%clk 0:00:50]}  Rxc4 {[%clk 0:00:19]} 22. Bd4 {[%clk 0:00:51]}  b6 {[%clk 0:00:20]} 23. a4 {[%clk 0:00:51]}  h5 {[%clk 0:00:17]} 24. a5 {[%clk 0:00:51]}  b5 {[%clk 0:00:17]} 25. a6 {[%clk 0:00:52]}  b4 {[%clk 0:00:17]} 26. Ra5 {[%clk 0:00:52]}  bxc3 {[%clk 0:00:17]} 27. bxc3 {[%clk 0:00:53]}  e6 {[%clk 0:00:17]} 28. Rb1 {[%clk 0:00:52]}  Bf3 {[%clk 0:00:17]} 29. h4 {[%clk 0:00:46]}  Be4 {[%clk 0:00:12]} 30. Rb8 {[%clk 0:00:43]}  Bd5 {[%clk 0:00:10]} 31. Rab5 {[%clk 0:00:35]}  e5 {[%clk 0:00:10]} 32. R8b7 {[%clk 0:00:23]}  Ke6 {[%clk 0:00:04]} 33. Rxd7 {[%clk 0:00:23]}  Kxd7 {[%clk 0:00:04]} 34. Rxd5+ {[%clk 0:00:24]}  Kc6 {[%clk 0:00:03]} 35. Rxe5 {[%clk 0:00:24]}  Ra4 {[%clk 0:00:02]} 36. Rg5 {[%clk 0:00:24]}  Ra1+ {[%clk 0:00:02]} 37. Kg2 {[%clk 0:00:25]}  Kd7 {[%clk 0:00:03]} 38. Rxg6 {[%clk 0:00:25]}  Ke7 {[%clk 0:00:04]} 39. Bxa7 {[%clk 0:00:25]}  Kf7 {[%clk 0:00:04]} 40. Rb6 {[%clk 0:00:26]}  Ra2 {[%clk 0:00:04]} 41. Bb8 {[%clk 0:00:26]}  Ke7 {[%clk 0:00:04]} 42. a7 {[%clk 0:00:26]}  Kd7 {[%clk 0:00:05]} 43. Rh6 {[%clk 0:00:27]}  Kc8 {[%clk 0:00:06]} 44. Rxh5 {[%clk 0:00:27]}  Kb7 {[%clk 0:00:06]} 45. Rg5 {[%clk 0:00:28]}  Ka8 {[%clk 0:00:07]} 46. h5 {[%clk 0:00:28]}  Rb2 {[%clk 0:00:05]} 47. h6 {[%clk 0:00:28]}  Rb7 {[%clk 0:00:06]} 48. Rh5 {[%clk 0:00:28]}  Rf7 {[%clk 0:00:05]} 49. Bg3 {[%clk 0:00:23]}  Rh7 {[%clk 0:00:05]} 50. f4 {[%clk 0:00:23]}  Kxa7 {[%clk 0:00:04]} 51. Kf3 {[%clk 0:00:24]}  Kb7 {[%clk 0:00:05]} 52. Kg4 {[%clk 0:00:24]}  Kc7 {[%clk 0:00:05]} 53. Kg5 {[%clk 0:00:25]}  Kd7 {[%clk 0:00:06]} 54. Kg6 {[%clk 0:00:26]}  Rh8 {[%clk 0:00:06]} 55. h7 {[%clk 0:00:27]}  Ke6 {[%clk 0:00:06]} 56. f5+ {[%clk 0:00:27]}  Ke7 {[%clk 0:00:06]} 57. Be5 {[%clk 0:00:28]}  Re8 {[%clk 0:00:06]} 58. h8=Q {[%clk 0:00:26]}  Rxh8 {[%clk 0:00:05]} 59. Rxh8 {[%clk 0:00:27]}  Kd7 {[%clk 0:00:05]} 60. f6 {[%clk 0:00:28]}  Kc6 {[%clk 0:00:06]} 61. f7 {[%clk 0:00:28]}  Kd5 {[%clk 0:00:07]} 62. f8=Q {[%clk 0:00:28]}  Kxe5 {[%clk 0:00:08]} 63. Qf5+ {[%clk 0:00:28]}  Kd6 {[%clk 0:00:08]} 64. Rd8+ {[%clk 0:00:29]}  Ke7 {[%clk 0:00:09]} 65. Qf6# {[%clk 0:00:29]} 1-0


[Site "https://www.chess.com"]

[Event "Titled Tuesday Blitz August 02 Early 2022"]
[White "Livaic, Leon"]
[Black "Chen, Justin"]
[WhiteFideId "14531534"]
[BlackFideId "2098199"]
[WhiteElo "2540"]
[BlackElo "2289"]
[Result "1-0"]
[Round "09"]
[TimeControl "180+1"]
[Date "2022.08.02"]
[WhiteClock "0:01:53"]
[BlackClock "0:00:59"]

1. d4 {[%clk 0:02:53]}  d5 {[%clk 0:02:57]} 2. c4 {[%clk 0:02:53]}  e6 {[%clk 0:02:57]} 3. Nf3 {[%clk 0:02:53]}  Nf6 {[%clk 0:02:56]} 4. Nc3 {[%clk 0:02:53]}  Be7 {[%clk 0:02:56]} 5. g3 {[%clk 0:02:52]}  O-O {[%clk 0:02:49]} 6. Bg2 {[%clk 0:02:52]}  b6 {[%clk 0:02:44]} 7. cxd5 {[%clk 0:02:51]}  Nxd5 {[%clk 0:02:36]} 8. Nxd5 {[%clk 0:02:50]}  exd5 {[%clk 0:02:36]} 9. O-O {[%clk 0:02:50]}  Bb7 {[%clk 0:02:34]} 10. b3 {[%clk 0:02:49]}  Nd7 {[%clk 0:02:34]} 11. Bb2 {[%clk 0:02:49]}  c5 {[%clk 0:02:29]} 12. Rc1 {[%clk 0:02:42]}  Rc8 {[%clk 0:02:29]} 13. e3 {[%clk 0:02:39]}  Re8 {[%clk 0:02:21]} 14. Re1 {[%clk 0:02:39]}  Nf8 {[%clk 0:02:15]} 15. dxc5 {[%clk 0:02:25]}  bxc5 {[%clk 0:02:15]} 16. Qd3 {[%clk 0:02:24]}  Ne6 {[%clk 0:02:02]} 17. Red1 {[%clk 0:02:24]}  Qa5 {[%clk 0:01:59]} 18. Bc3 {[%clk 0:02:17]}  Qb6 {[%clk 0:01:52]} 19. Ne5 {[%clk 0:02:17]}  Red8 {[%clk 0:01:47]} 20. Bh3 {[%clk 0:01:54]}  Bf6 {[%clk 0:01:27]} 21. Bg2 {[%clk 0:01:54]}  Qb5 {[%clk 0:00:59]} 22. Qxb5 {[%clk 0:01:53]} 1-0


[Site "https://www.chess.com"]

[Event "Titled Tuesday Blitz August 02 Early 2022"]
[White "Lobanov, Sergei"]
[Black "Sarana, Alexey"]
[WhiteFideId "24183750"]
[BlackFideId "24133795"]
[WhiteElo "2524"]
[BlackElo "2666"]
[Result "0-1"]
[Round "09"]
[TimeControl "180+1"]
[Date "2022.08.02"]
[WhiteClock "0:00:05"]
[BlackClock "0:00:40"]

1. Nf3 {[%clk 0:03:00]}  d5 {[%clk 0:03:00]} 2. g3 {[%clk 0:03:01]}  g6 {[%clk 0:03:00]} 3. Bg2 {[%clk 0:03:01]}  Bg7 {[%clk 0:03:01]} 4. d4 {[%clk 0:03:01]}  c6 {[%clk 0:03:00]} 5. O-O {[%clk 0:03:01]}  Nf6 {[%clk 0:03:01]} 6. c4 {[%clk 0:03:01]}  dxc4 {[%clk 0:03:02]} 7. Na3 {[%clk 0:02:57]}  b5 {[%clk 0:03:00]} 8. Ne5 {[%clk 0:02:55]}  Nd5 {[%clk 0:03:00]} 9. b3 {[%clk 0:02:27]}  c3 {[%clk 0:02:58]} 10. Nc2 {[%clk 0:02:20]}  O-O {[%clk 0:02:53]} 11. a4 {[%clk 0:02:20]}  Bb7 {[%clk 0:02:41]} 12. Qd3 {[%clk 0:02:12]}  a6 {[%clk 0:02:25]} 13. e4 {[%clk 0:01:58]}  Nc7 {[%clk 0:01:43]} 14. Qxc3 {[%clk 0:01:54]}  c5 {[%clk 0:01:42]} 15. dxc5 {[%clk 0:01:35]}  Nd7 {[%clk 0:01:20]} 16. f4 {[%clk 0:01:35]}  Nxe5 {[%clk 0:01:20]} 17. fxe5 {[%clk 0:01:36]}  Ne6 {[%clk 0:01:20]} 18. axb5 {[%clk 0:00:42]}  Qc7 {[%clk 0:01:19]} 19. c6 {[%clk 0:00:36]}  axb5 {[%clk 0:01:17]} 20. Rxa8 {[%clk 0:00:32]}  Bxa8 {[%clk 0:01:17]} 21. Nb4 {[%clk 0:00:31]}  Bxe5 {[%clk 0:01:15]} 22. Qc2 {[%clk 0:00:17]}  Nd4 {[%clk 0:01:05]} 23. Qf2 {[%clk 0:00:17]}  Nxc6 {[%clk 0:01:01]} 24. Nxc6 {[%clk 0:00:17]}  Qxc6 {[%clk 0:00:58]} 25. Bh6 {[%clk 0:00:18]}  Qd6 {[%clk 0:00:50]} 26. Kh1 {[%clk 0:00:18]}  Bd4 {[%clk 0:00:43]} 27. Qf3 {[%clk 0:00:17]}  Bg7 {[%clk 0:00:41]} 28. Bxg7 {[%clk 0:00:13]}  Kxg7 {[%clk 0:00:42]} 29. Qc3+ {[%clk 0:00:13]}  f6 {[%clk 0:00:42]} 30. Re1 {[%clk 0:00:11]}  Rd8 {[%clk 0:00:39]} 31. e5 {[%clk 0:00:11]}  Bxg2+ {[%clk 0:00:39]} 32. Kxg2 {[%clk 0:00:12]}  Qd2+ {[%clk 0:00:39]} 33. Qxd2 {[%clk 0:00:12]}  Rxd2+ {[%clk 0:00:40]} 34. Kg1 {[%clk 0:00:12]}  f5 {[%clk 0:00:40]} 35. Re3 {[%clk 0:00:07]}  Kf7 {[%clk 0:00:40]} 36. Rc3 {[%clk 0:00:05]}  Rd5 {[%clk 0:00:40]} 0-1


[Site "https://www.chess.com"]

[Event "Titled Tuesday Blitz August 02 Early 2022"]
[White "Manukyan, Sargis A."]
[Black "Agasarov, Benik"]
[WhiteFideId "13303970"]
[BlackFideId "13314823"]
[WhiteElo "2187"]
[BlackElo "2729"]
[Result "0-1"]
[Round "09"]
[TimeControl "180+1"]
[Date "2022.08.02"]
[WhiteClock "0:00:10"]
[BlackClock "0:00:52"]

1. Nf3 {[%clk 0:02:52]}  c5 {[%clk 0:02:57]} 2. c4 {[%clk 0:02:52]}  Nc6 {[%clk 0:02:57]} 3. g3 {[%clk 0:02:53]}  g6 {[%clk 0:02:56]} 4. Bg2 {[%clk 0:02:53]}  Bg7 {[%clk 0:02:57]} 5. O-O {[%clk 0:02:54]}  d6 {[%clk 0:02:57]} 6. Nc3 {[%clk 0:02:53]}  Bf5 {[%clk 0:02:58]} 7. a3 {[%clk 0:02:49]}  Qd7 {[%clk 0:02:58]} 8. Re1 {[%clk 0:02:49]}  Bh3 {[%clk 0:02:57]} 9. Bh1 {[%clk 0:02:49]}  h5 {[%clk 0:02:58]} 10. Ng5 {[%clk 0:02:18]}  h4 {[%clk 0:02:56]} 11. Nxh3 {[%clk 0:02:11]}  hxg3 {[%clk 0:02:34]} 12. hxg3 {[%clk 0:01:38]}  Qxh3 {[%clk 0:02:32]} 13. Bg2 {[%clk 0:01:39]}  Qh2+ {[%clk 0:02:31]} 14. Kf1 {[%clk 0:01:39]}  Nf6 {[%clk 0:02:17]} 15. e3 {[%clk 0:01:37]}  Ne5 {[%clk 0:02:14]} 16. d4 {[%clk 0:01:31]}  Neg4 {[%clk 0:02:13]} 17. Qf3 {[%clk 0:01:21]}  Rb8 {[%clk 0:01:49]} 18. Ke2 {[%clk 0:01:07]}  Qh5 {[%clk 0:01:14]} 19. Rh1 {[%clk 0:01:06]}  Qf5 {[%clk 0:01:13]} 20. Rxh8+ {[%clk 0:01:03]}  Bxh8 {[%clk 0:01:13]} 21. Qxf5 {[%clk 0:01:01]}  gxf5 {[%clk 0:01:14]} 22. f3 {[%clk 0:00:48]}  Nh6 {[%clk 0:01:12]} 23. dxc5 {[%clk 0:00:44]}  dxc5 {[%clk 0:01:11]} 24. e4 {[%clk 0:00:44]}  Nhg8 {[%clk 0:01:10]} 25. Bf4 {[%clk 0:00:39]}  Rd8 {[%clk 0:01:09]} 26. exf5 {[%clk 0:00:39]}  Nh5 {[%clk 0:01:09]} 27. Nd5 {[%clk 0:00:23]}  Ngf6 {[%clk 0:01:09]} 28. Nc7+ {[%clk 0:00:18]}  Kf8 {[%clk 0:01:09]} 29. Bh6+ {[%clk 0:00:19]}  Kg8 {[%clk 0:01:09]} 30. g4 {[%clk 0:00:19]}  Ng3+ {[%clk 0:01:03]} 31. Kf2 {[%clk 0:00:19]}  Nge4+ {[%clk 0:01:04]} 32. fxe4 {[%clk 0:00:18]}  Nxg4+ {[%clk 0:01:04]} 33. Ke2 {[%clk 0:00:16]}  Nxh6 {[%clk 0:01:04]} 34. Rb1 {[%clk 0:00:14]}  Be5 {[%clk 0:01:02]} 35. Nd5 {[%clk 0:00:14]}  e6 {[%clk 0:01:03]} 36. fxe6 {[%clk 0:00:13]}  fxe6 {[%clk 0:01:03]} 37. Ne3 {[%clk 0:00:12]}  Bf4 {[%clk 0:00:54]} 38. b4 {[%clk 0:00:11]}  Bxe3 {[%clk 0:00:53]} 39. Kxe3 {[%clk 0:00:12]}  Ng4+ {[%clk 0:00:54]} 40. Kf4 {[%clk 0:00:12]}  Nf2 {[%clk 0:00:54]} 41. bxc5 {[%clk 0:00:11]}  Nd3+ {[%clk 0:00:54]} 42. Kg5 {[%clk 0:00:12]}  Nxc5 {[%clk 0:00:55]} 43. e5 {[%clk 0:00:10]}  b6 {[%clk 0:00:55]} 44. Bh3 {[%clk 0:00:10]}  Rd3 {[%clk 0:00:53]} 45. Kf6 {[%clk 0:00:10]}  Rxh3 {[%clk 0:00:53]} 46. Rh1 {[%clk 0:00:10]}  Rxh1 {[%clk 0:00:52]} 0-1


[Site "https://www.chess.com"]

[Event "Titled Tuesday Blitz August 02 Early 2022"]
[White "Nakamura, Hikaru"]
[Black "Sevian, Samuel"]
[WhiteFideId "2016192"]
[BlackFideId "2040506"]
[WhiteElo "2850"]
[BlackElo "2692"]
[Result "1-0"]
[Round "09"]
[TimeControl "180+1"]
[Date "2022.08.02"]
[WhiteClock "0:00:20"]
[BlackClock "0:00:01"]

1. e4 {[%clk 0:03:00]}  e5 {[%clk 0:03:00]} 2. Nf3 {[%clk 0:02:58]}  Nc6 {[%clk 0:03:00]} 3. Bb5 {[%clk 0:02:58]}  a6 {[%clk 0:03:00]} 4. Ba4 {[%clk 0:02:58]}  Nf6 {[%clk 0:03:01]} 5. O-O {[%clk 0:02:56]}  Nxe4 {[%clk 0:03:01]} 6. d4 {[%clk 0:02:56]}  b5 {[%clk 0:03:01]} 7. Bb3 {[%clk 0:02:56]}  d5 {[%clk 0:03:02]} 8. dxe5 {[%clk 0:02:57]}  Be6 {[%clk 0:03:02]} 9. Nbd2 {[%clk 0:02:57]}  Be7 {[%clk 0:03:02]} 10. c3 {[%clk 0:02:51]}  O-O {[%clk 0:03:01]} 11. Qe1 {[%clk 0:02:44]}  Nc5 {[%clk 0:02:54]} 12. Bc2 {[%clk 0:02:44]}  d4 {[%clk 0:02:45]} 13. Ne4 {[%clk 0:02:33]}  d3 {[%clk 0:02:26]} 14. Bb1 {[%clk 0:02:20]}  Qd5 {[%clk 0:02:22]} 15. Nxc5 {[%clk 0:02:13]}  Bxc5 {[%clk 0:02:23]} 16. b4 {[%clk 0:02:07]}  Bb6 {[%clk 0:02:18]} 17. a4 {[%clk 0:02:03]}  Rad8 {[%clk 0:02:18]} 18. axb5 {[%clk 0:01:44]}  axb5 {[%clk 0:02:17]} 19. Ba2 {[%clk 0:01:44]}  Qd7 {[%clk 0:02:17]} 20. Qe4 {[%clk 0:01:34]}  h6 {[%clk 0:02:11]} 21. Be3 {[%clk 0:01:27]}  Bxe3 {[%clk 0:02:09]} 22. Qxe3 {[%clk 0:01:28]}  Rfe8 {[%clk 0:02:08]} 23. Rfd1 {[%clk 0:01:03]}  Bxa2 {[%clk 0:01:50]} 24. Rxa2 {[%clk 0:01:04]}  Qd5 {[%clk 0:01:50]} 25. Raa1 {[%clk 0:00:47]}  Nxe5 {[%clk 0:01:49]} 26. Nd4 {[%clk 0:00:47]}  Nc4 {[%clk 0:01:47]} 27. Qf4 {[%clk 0:00:42]}  d2 {[%clk 0:01:45]} 28. Qxc7 {[%clk 0:00:41]}  Rd6 {[%clk 0:01:09]} 29. Qc5 {[%clk 0:00:35]}  Re5 {[%clk 0:00:51]} 30. Qxd5 {[%clk 0:00:30]}  Rdxd5 {[%clk 0:00:45]} 31. Kf1 {[%clk 0:00:31]}  g5 {[%clk 0:00:40]} 32. h3 {[%clk 0:00:29]}  h5 {[%clk 0:00:39]} 33. g3 {[%clk 0:00:26]}  g4 {[%clk 0:00:39]} 34. hxg4 {[%clk 0:00:26]}  hxg4 {[%clk 0:00:40]} 35. Ra2 {[%clk 0:00:26]}  Rd8 {[%clk 0:00:32]} 36. Nc6 {[%clk 0:00:21]}  Re1+ {[%clk 0:00:06]} 37. Rxe1 {[%clk 0:00:21]}  d1=Q {[%clk 0:00:07]} 38. Rxd1 {[%clk 0:00:21]}  Rxd1+ {[%clk 0:00:07]} 39. Ke2 {[%clk 0:00:20]}  Rc1 {[%clk 0:00:08]} 40. Kd3 {[%clk 0:00:20]}  Rd1+ {[%clk 0:00:08]} 41. Ke4 {[%clk 0:00:20]}  Kg7 {[%clk 0:00:06]} 42. Nd4 {[%clk 0:00:20]}  Nd2+ {[%clk 0:00:03]} 43. Kf4 {[%clk 0:00:20]}  Nb1 {[%clk 0:00:01]} 44. Nxb5 {[%clk 0:00:20]} 1-0


[Site "https://www.chess.com"]

[Event "Titled Tuesday Blitz August 02 Early 2022"]
[White "Nguyen, Quoc Hy"]
[Black "Seo, Jung Min"]
[WhiteFideId "12410853"]
[BlackFideId "1734687"]
[WhiteElo "1938"]
[BlackElo "2414"]
[Result "1-0"]
[Round "09"]
[TimeControl "180+1"]
[Date "2022.08.02"]
[WhiteClock "0:01:30"]
[BlackClock "0:01:10"]

1. d4 {[%clk 0:03:00]}  Nf6 {[%clk 0:02:59]} 2. c4 {[%clk 0:03:01]}  e6 {[%clk 0:02:59]} 3. Nc3 {[%clk 0:02:59]}  Bb4 {[%clk 0:02:59]} 4. e3 {[%clk 0:03:00]}  O-O {[%clk 0:02:58]} 5. Bd3 {[%clk 0:03:00]}  d5 {[%clk 0:02:58]} 6. Ne2 {[%clk 0:03:00]}  c5 {[%clk 0:02:56]} 7. a3 {[%clk 0:02:52]}  Bxc3+ {[%clk 0:02:53]} 8. Nxc3 {[%clk 0:02:53]}  dxc4 {[%clk 0:02:50]} 9. Bxc4 {[%clk 0:02:53]}  Qc7 {[%clk 0:02:48]} 10. d5 {[%clk 0:02:52]}  exd5 {[%clk 0:02:44]} 11. Nxd5 {[%clk 0:02:52]}  Nxd5 {[%clk 0:02:45]} 12. Bxd5 {[%clk 0:02:53]}  Nd7 {[%clk 0:02:41]} 13. O-O {[%clk 0:02:51]}  Nf6 {[%clk 0:02:41]} 14. e4 {[%clk 0:02:43]}  Nxd5 {[%clk 0:02:33]} 15. exd5 {[%clk 0:02:41]}  Rd8 {[%clk 0:02:33]} 16. Qf3 {[%clk 0:02:40]}  b5 {[%clk 0:02:12]} 17. d6 {[%clk 0:02:36]}  Qb7 {[%clk 0:02:12]} 18. Qg3 {[%clk 0:02:31]}  Bf5 {[%clk 0:02:09]} 19. Bg5 {[%clk 0:02:21]}  Rd7 {[%clk 0:02:09]} 20. h4 {[%clk 0:02:19]}  Kh8 {[%clk 0:02:06]} 21. h5 {[%clk 0:02:16]}  f6 {[%clk 0:02:04]} 22. Be3 {[%clk 0:02:09]}  Qc6 {[%clk 0:02:04]} 23. h6 {[%clk 0:02:05]}  g5 {[%clk 0:02:02]} 24. Bxg5 {[%clk 0:02:03]}  Qxd6 {[%clk 0:01:57]} 25. Qf3 {[%clk 0:01:38]}  Rg8 {[%clk 0:01:49]} 26. Rad1 {[%clk 0:01:35]}  Qe6 {[%clk 0:01:15]} 27. Rxd7 {[%clk 0:01:33]}  Rxg5 {[%clk 0:01:11]} 28. Rd8+ {[%clk 0:01:32]}  Rg8 {[%clk 0:01:11]} 29. Rxg8+ {[%clk 0:01:32]}  Kxg8 {[%clk 0:01:11]} 30. Qg3+ {[%clk 0:01:32]}  Bg6 {[%clk 0:01:10]} 31. Qb8+ {[%clk 0:01:30]}  Kf7 {[%clk 0:01:10]} 32. Qxa7+ {[%clk 0:01:30]} 1-0


[Site "https://www.chess.com"]